[Event "Schack-SM 2022: Sverigemastarklassen"]
[Site "Fyrishov, Idrottsgatan 2, Uppsala, Sweden"]
[Date "2022.07.06"]
[Round "5.4"]
[White "Carlsson, Ludvig"]
[Black "Seo, Jung Min"]
[Result "0-1"]
[TimeControl "90 minutes for 40 moves + 30 minutes for the rest of the game + 30 seconds per move from move one."]
[WhiteTitle "IM"]
[BlackTitle "IM"]
[WhiteFideId "1727010"]
[BlackFideId "1734687"]
[WhiteElo "2399"]
[BlackElo "2492"]

1. e4 {[%clk 01:30:51]} {[%emt 00:00:08]} e5 {[%clk 01:30:58]} {[%emt
00:00:02]} 2. Nf3 {[%clk 01:31:07]} {[%emt 00:00:13]} Nc6 {[%clk 01:31:25]}
{[%emt 00:00:05]} 3. Nc3 {[%clk 01:31:22]} {[%emt 00:00:14]} Nf6 {[%clk
01:31:53]} {[%emt 00:00:03]} 4. d4 {[%clk 01:31:38]} {[%emt 00:00:14]} exd4
{[%clk 01:32:18]} {[%emt 00:00:05]} 5. Nxd4 {[%clk 01:31:58]} {[%emt 00:00:10]}
Bb4 {[%clk 01:32:39]} {[%emt 00:00:09]} 6. Nxc6 {[%clk 01:32:12]} {[%emt
00:00:16]} bxc6 {[%clk 01:33:07]} {[%emt 00:00:02]} 7. Bd3 {[%clk 01:32:25]}
{[%emt 00:00:15]} O-O {[%clk 01:33:33]} {[%emt 00:00:06]} 8. O-O {[%clk
01:32:47]} {[%emt 00:00:08]} d5 {[%clk 01:34:02]} 9. Bd2 {[%clk 01:33:06]}
{[%emt 00:00:11]} Rb8 {[%clk 01:29:08]} {[%emt 00:05:25]} 10. Re1 {[%clk
01:33:06]} {[%emt 00:00:28]} Re8 {[%clk 01:27:41]} {[%emt 00:01:58]} 11. a3
{[%clk 01:30:19]} {[%emt 00:03:16]} Be7 {[%clk 01:25:45]} {[%emt 00:02:27]} 12.
e5 {[%clk 01:22:26]} {[%emt 00:08:23]} Nd7 {[%clk 01:26:10]} {[%emt 00:00:05]}
13. b4 {[%clk 01:22:39]} {[%emt 00:00:17]} Bf8 {[%clk 01:24:06]} {[%emt
00:02:34]} 14. f4 {[%clk 01:20:28]} {[%emt 00:02:40]} c5 {[%clk 01:20:56]}
{[%emt 00:03:41]} 15. Kh1 {[%clk 01:03:37]} {[%emt 00:17:19]} c6 {[%clk
01:05:59]} {[%emt 00:15:29]} 16. Qf3 {[%clk 01:01:52]} {[%emt 00:02:15]} cxb4
{[%clk 00:54:31]} {[%emt 00:11:59]} 17. axb4 {[%clk 01:02:09]} {[%emt
00:00:13]} Bxb4 {[%clk 00:54:49]} {[%emt 00:00:11]} 18. Rxa7 {[%clk 01:01:46]}
{[%emt 00:00:53]} Rb7 {[%clk 00:53:47]} {[%emt 00:01:33]} 19. Rxb7 {[%clk
00:49:28]} {[%emt 00:12:47]} Bxb7 {[%clk 00:54:16]} 20. Qg3 {[%clk 00:49:18]}
{[%emt 00:00:39]} Be7 {[%clk 00:44:36]} {[%emt 00:10:11]} 21. Qh3 {[%clk
00:39:59]} {[%emt 00:09:49]} Nf8 {[%clk 00:44:22]} {[%emt 00:00:44]} 22. Qg4
{[%clk 00:40:12]} {[%emt 00:00:16]} Nd7 {[%clk 00:42:38]} {[%emt 00:02:15]} 23.
f5 {[%clk 00:38:19]} {[%emt 00:02:23]} Bf8 {[%clk 00:41:01]} {[%emt 00:02:07]}
24. Qg3 {[%clk 00:37:22]} {[%emt 00:01:26]} d4 {[%clk 00:39:23]} {[%emt
00:02:09]} 25. Nd1 {[%clk 00:37:47]} {[%emt 00:00:05]} Nc5 {[%clk 00:38:37]}
{[%emt 00:01:16]} 26. Nf2 {[%clk 00:27:58]} {[%emt 00:10:19]} Nxd3 {[%clk
00:39:02]} {[%emt 00:00:05]} 27. cxd3 {[%clk 00:28:21]} {[%emt 00:00:06]} c5
{[%clk 00:38:56]} {[%emt 00:00:36]} 28. Ng4 {[%clk 00:28:18]} {[%emt 00:00:33]}
Kh8 {[%clk 00:38:39]} {[%emt 00:00:47]} 29. h4 {[%clk 00:28:38]} {[%emt
00:00:10]} Qd5 {[%clk 00:36:33]} {[%emt 00:02:37]} 30. Bg5 {[%clk 00:26:55]}
{[%emt 00:02:13]} Ra8 {[%clk 00:32:16]} {[%emt 00:04:47]} 31. Nf6 {[%clk
00:18:11]} {[%emt 00:09:14]} Qc6 {[%clk 00:29:39]} {[%emt 00:03:06]} 32. Ne4
{[%clk 00:18:36]} {[%emt 00:00:05]} c4 {[%clk 00:28:51]} {[%emt 00:01:19]} 33.
f6 {[%clk 00:18:42]} {[%emt 00:00:24]} cxd3 {[%clk 00:28:26]} {[%emt 00:00:54]}
34. fxg7+ {[%clk 00:17:44]} {[%emt 00:01:29]} Bxg7 {[%clk 00:28:54]} {[%emt
00:00:03]} 35. Nd6 {[%clk 00:17:46]} {[%emt 00:00:27]} Qd7 {[%clk 00:17:13]}
{[%emt 00:12:11]} 36. Rb1 {[%clk 00:16:51]} {[%emt 00:01:25]} d2 {[%clk
00:15:45]} {[%emt 00:01:57]} 37. Bxd2 {[%clk 00:16:40]} {[%emt 00:00:41]} Bd5
{[%clk 00:16:09]} {[%emt 00:00:06]} 38. Bg5 {[%clk 00:16:26]} {[%emt 00:00:45]}
Rg8 {[%clk 00:15:17]} {[%emt 00:01:22]} 39. Rf1 {[%clk 00:15:06]} {[%emt
00:01:50]} h6 {[%clk 00:14:30]} {[%emt 00:01:17]} 40. Rf2 {[%clk 00:14:02]}
{[%emt 00:01:34]} hxg5 {[%clk 00:12:09]} {[%emt 00:02:51]} 41. hxg5 {[%clk
00:10:16]} {[%emt 00:04:16]} Ra8 {[%clk 00:11:03]} {[%emt 00:01:36]} 42. e6
{[%clk 00:06:05]} {[%emt 00:04:40]} Bxe6 {[%clk 00:09:30]} {[%emt 00:02:04]} 43.
Rf6 {[%clk 00:06:29]} {[%emt 00:00:05]} Rd8 {[%clk 00:07:15]} {[%emt 00:02:46]}
44. Ne4 {[%clk 00:02:04]} {[%emt 00:04:54]} d3 {[%clk 00:05:25]} {[%emt
00:02:20]} 45. Rf1 {[%clk 00:01:33]} {[%emt 00:01:01]} Qd4 {[%clk 00:04:17]}
{[%emt 00:01:37]} 46. Nf6 {[%clk 00:29:00]} {[%emt 00:03:05]} Bxf6 {[%clk
00:34:32]} {[%emt 00:00:15]} 47. gxf6 {[%clk 00:29:26]} {[%emt 00:00:03]} Qg4
{[%clk 00:34:57]} {[%emt 00:00:05]} 48. Qc7 {[%clk 00:29:36]} {[%emt 00:00:20]}
Qh4+ {[%clk 00:33:59]} {[%emt 00:01:28]} 49. Kg1 {[%clk 00:30:03]} {[%emt
00:00:04]} Rg8 {[%clk 00:34:05]} {[%emt 00:00:24]} 50. Rf4 {[%clk 00:29:09]}
{[%emt 00:01:24]} Qe1+ {[%clk 00:34:19]} {[%emt 00:00:14]} 51. Rf1 {[%clk
00:29:36]} {[%emt 00:00:04]} Qg3 {[%clk 00:33:42]} {[%emt 00:01:06]} 52. Qc6
{[%clk 00:28:47]} {[%emt 00:01:21]} Bh3 {[%clk 00:32:49]} {[%emt 00:01:23]} 53.
Qd5 {[%clk 00:29:02]} {[%emt 00:00:14]} Qxg2+ {[%clk 00:33:12]} {[%emt
00:00:08]} 0-1

[Event "Schack-SM 2022: Sverigemastarklassen"]
[Site "Fyrishov, Idrottsgatan 2, Uppsala, Sweden"]
[Date "2022.07.06"]
[Round "5.5"]
[White "Jogstad, Martin"]
[Black "Hillarp, Tiger"]
[Result "0-1"]
[TimeControl "90 minutes for 40 moves + 30 minutes for the rest of the game + 30 seconds per move from move one."]
[WhiteTitle "FM"]
[BlackTitle "GM"]
[WhiteFideId "1715364"]
[BlackFideId "1700812"]
[WhiteElo "2384"]
[BlackElo "2516"]

1. d4 {[%clk 01:30:46]} {[%emt 00:00:12]} Nf6 {[%clk 01:30:40]} {[%emt
00:00:22]} 2. c4 {[%clk 01:31:06]} {[%emt 00:00:08]} e6 {[%clk 01:31:07]}
{[%emt 00:00:05]} 3. Nc3 {[%clk 01:31:27]} {[%emt 00:00:07]} Bb4 {[%clk
01:29:03]} {[%emt 00:02:36]} 4. a3 {[%clk 01:31:52]} {[%emt 00:00:05]} Bxc3+
{[%clk 01:29:24]} {[%emt 00:00:09]} 5. bxc3 {[%clk 01:32:16]} {[%emt 00:00:05]}
c5 {[%clk 01:22:55]} {[%emt 00:06:59]} 6. f3 {[%clk 01:32:40]} {[%emt
00:00:07]} Nc6 {[%clk 01:22:51]} {[%emt 00:00:34]} 7. e4 {[%clk 01:33:02]}
{[%emt 00:00:06]} e5 {[%clk 01:22:04]} {[%emt 00:01:18]} 8. d5 {[%clk
01:26:50]} {[%emt 00:06:42]} Na5 {[%clk 01:19:16]} {[%emt 00:03:18]} 9. Bd3
{[%clk 01:26:31]} {[%emt 00:00:50]} d6 {[%clk 01:18:38]} {[%emt 00:01:07]} 10.
Ne2 {[%clk 01:22:15]} {[%emt 00:04:46]} b6 {[%clk 01:06:26]} {[%emt 00:12:43]}
11. Ng3 {[%clk 01:20:13]} {[%emt 00:02:31]} Kd7 {[%clk 00:59:10]} {[%emt
00:07:47]} 12. O-O {[%clk 01:14:09]} {[%emt 00:06:33]} Ne8 {[%clk 00:42:29]}
{[%emt 00:17:12]} 13. f4 {[%clk 01:07:39]} {[%emt 00:07:00]} f6 {[%clk
00:41:53]} {[%emt 00:01:06]} 14. Nf5 {[%clk 00:53:48]} {[%emt 00:14:21]} Kc7
{[%clk 00:41:13]} {[%emt 00:01:11]} 15. Ne3 {[%clk 00:54:09]} {[%emt 00:00:08]}
Rb8 {[%clk 00:36:24]} {[%emt 00:05:18]} 16. g4 {[%clk 00:47:13]} {[%emt
00:07:26]} exf4 {[%clk 00:35:01]} {[%emt 00:01:54]} 17. Rxf4 {[%clk 00:47:18]}
{[%emt 00:00:24]} Rb7 {[%clk 00:35:13]} {[%emt 00:00:19]} 18. Ra2 {[%clk
00:43:23]} {[%emt 00:04:26]} Kb8 {[%clk 00:35:31]} {[%emt 00:00:11]} 19. Rg2
{[%clk 00:42:19]} {[%emt 00:01:34]} Re7 {[%clk 00:22:45]} {[%emt 00:13:17]} 20.
h4 {[%clk 00:30:50]} {[%emt 00:11:58]} Re5 {[%clk 00:20:18]} {[%emt 00:02:57]}
21. Nf5 {[%clk 00:24:29]} {[%emt 00:06:51]} h6 {[%clk 00:18:08]} {[%emt
00:02:41]} 22. Rf1 {[%clk 00:21:25]} {[%emt 00:03:34]} g5 {[%clk 00:18:27]}
{[%emt 00:00:10]} 23. Ne3 {[%clk 00:17:19]} {[%emt 00:04:36]} Rh7 {[%clk
00:18:12]} {[%emt 00:00:46]} 24. Bd2 {[%clk 00:17:04]} {[%emt 00:00:44]} Rhe7
{[%clk 00:16:00]} {[%emt 00:02:42]} 25. Qf3 {[%clk 00:14:31]} {[%emt 00:03:03]}
Qd7 {[%clk 00:14:33]} {[%emt 00:01:58]} 26. Nf5 {[%clk 00:06:47]} {[%emt
00:08:14]} Ba6 {[%clk 00:09:11]} {[%emt 00:05:52]} 27. Nxh6 {[%clk 00:02:41]}
{[%emt 00:04:35]} Bxc4 {[%clk 00:08:15]} {[%emt 00:01:26]} 28. Nf5 {[%clk
00:02:30]} {[%emt 00:00:41]} gxh4 {[%clk 00:08:03]} {[%emt 00:00:43]} 29. Nxe7
{[%clk 00:02:17]} {[%emt 00:00:44]} Qxe7 {[%clk 00:07:46]} {[%emt 00:00:45]} 30.
Re1 {[%clk 00:01:17]} {[%emt 00:01:29]} Qd7 {[%clk 00:06:22]} {[%emt 00:01:55]}
31. Bf4 {[%clk 00:01:06]} {[%emt 00:00:43]} Re7 {[%clk 00:06:44]} {[%emt
00:00:07]} 32. Kh2 {[%clk 00:00:35]} {[%emt 00:01:01]} Bxd3 {[%clk 00:05:31]}
{[%emt 00:01:43]} 33. Qxd3 {[%clk 00:01:03]} {[%emt 00:00:01]} Qa4 {[%clk
00:05:53]} {[%emt 00:00:09]} 34. g5 {[%clk 00:01:18]} {[%emt 00:00:15]} fxg5
{[%clk 00:05:31]} {[%emt 00:00:51]} 35. Bxg5 {[%clk 00:01:46]} {[%emt
00:00:03]} Rg7 {[%clk 00:05:34]} {[%emt 00:00:26]} 36. e5 {[%clk 00:01:02]}
{[%emt 00:01:14]} Rxg5 {[%clk 00:05:56]} {[%emt 00:00:08]} 37. Re4 {[%clk
00:00:54]} {[%emt 00:00:39]} Rxg2+ {[%clk 00:06:16]} {[%emt 00:00:10]} 38. Kxg2
{[%clk 00:01:23]} {[%emt 00:00:01]} c4 {[%clk 00:01:41]} {[%emt 00:05:05]} 39.
Qd4 {[%clk 00:00:34]} {[%emt 00:01:19]} Qc2+ {[%clk 00:01:16]} {[%emt
00:00:54]} 40. Kh3 {[%clk 00:00:32]} {[%emt 00:00:32]} Nb3 {[%clk 00:01:00]}
{[%emt 00:00:47]} 41. Qxc4 {[%clk 00:17:52]} {[%emt 00:13:10]} Nd2 {[%clk
00:30:46]} {[%emt 00:00:43]} 42. Qa4 {[%clk 00:13:28]} {[%emt 00:04:54]} Qd3+
{[%clk 00:29:16]} {[%emt 00:02:00]} 43. Kh2 {[%clk 00:13:41]} {[%emt 00:00:16]}
Qg3+ {[%clk 00:29:35]} {[%emt 00:00:12]} 44. Kh1 {[%clk 00:14:03]} {[%emt
00:00:08]} Qf3+ {[%clk 00:29:55]} {[%emt 00:00:10]} 45. Kh2 {[%clk 00:14:00]}
{[%emt 00:00:33]} Qf2+ {[%clk 00:30:18]} {[%emt 00:00:07]} 46. Kh1 {[%clk
00:14:20]} {[%emt 00:00:10]} Qf1+ {[%clk 00:30:42]} {[%emt 00:00:07]} 47. Kh2
{[%clk 00:14:44]} {[%emt 00:00:06]} Nf3# {[%clk 00:30:16]} {[%emt 00:00:06]}
0-1

[Event "Schack-SM 2022: Sverigemastarklassen"]
[Site "Fyrishov, Idrottsgatan 2, Uppsala, Sweden"]
[Date "2022.07.05"]
[Round "4.3"]
[White "Westerberg, Jonathan"]
[Black "Jogstad, Martin"]
[Result "1/2-1/2"]
[TimeControl "90 minutes for 40 moves + 30 minutes for the rest of the game + 30 seconds per move from move one."]
[WhiteTitle "GM"]
[BlackTitle "FM"]
[WhiteFideId "1701754"]
[BlackFideId "1715364"]
[WhiteElo "2476"]
[BlackElo "2384"]

1. Nf3 {[%clk 01:30:56]} {[%emt 00:00:03]} d5 {[%clk 01:30:02]} {[%emt
00:00:58]} 2. g3 {[%clk 01:30:04]} {[%emt 00:01:22]} Nf6 {[%clk 01:30:22]}
{[%emt 00:00:10]} 3. Bg2 {[%clk 01:29:22]} {[%emt 00:01:11]} c5 {[%clk
01:29:10]} {[%emt 00:01:44]} 4. O-O {[%clk 01:28:39]} {[%emt 00:01:12]} Nc6
{[%clk 01:28:27]} {[%emt 00:01:13]} 5. c4 {[%clk 01:28:25]} {[%emt 00:00:45]}
e6 {[%clk 01:28:47]} {[%emt 00:00:10]} 6. b3 {[%clk 01:21:52]} {[%emt
00:07:02]} Be7 {[%clk 01:23:54]} {[%emt 00:05:22]} 7. e3 {[%clk 01:09:18]}
{[%emt 00:13:05]} O-O {[%clk 01:24:04]} {[%emt 00:00:20]} 8. Bb2 {[%clk
01:09:28]} {[%emt 00:00:19]} d4 {[%clk 01:22:42]} {[%emt 00:01:53]} 9. exd4
{[%clk 01:04:44]} {[%emt 00:05:14]} cxd4 {[%clk 01:23:05]} {[%emt 00:00:07]} 10.
Re1 {[%clk 01:05:08]} {[%emt 00:00:07]} Re8 {[%clk 01:18:56]} {[%emt 00:04:38]}
11. d3 {[%clk 00:58:15]} {[%emt 00:07:23]} a5 {[%clk 01:07:59]} {[%emt
00:11:27]} 12. a3 {[%clk 00:53:00]} {[%emt 00:05:46]} Qb6 {[%clk 00:58:48]}
{[%emt 00:09:40]} 13. Ne5 {[%clk 00:46:09]} {[%emt 00:07:22]} Nd7 {[%clk
00:44:11]} {[%emt 00:15:06]} 14. Nxd7 {[%clk 00:39:09]} {[%emt 00:07:31]} Bxd7
{[%clk 00:44:39]} {[%emt 00:00:02]} 15. Nd2 {[%clk 00:39:33]} {[%emt 00:00:06]}
Bf8 {[%clk 00:38:11]} {[%emt 00:06:56]} 16. Qh5 {[%clk 00:29:06]} {[%emt
00:10:57]} e5 {[%clk 00:31:04]} {[%emt 00:07:38]} 17. Bd5 {[%clk 00:24:19]}
{[%emt 00:05:18]} g6 {[%clk 00:25:31]} {[%emt 00:06:03]} 18. Qf3 {[%clk
00:22:15]} {[%emt 00:02:33]} Nd8 {[%clk 00:25:30]} {[%emt 00:00:31]} 19. Ne4
{[%clk 00:10:24]} {[%emt 00:12:22]} Kg7 {[%clk 00:23:37]} {[%emt 00:02:23]} 20.
Rab1 {[%clk 00:06:49]} {[%emt 00:04:05]} f5 {[%clk 00:20:06]} {[%emt 00:04:00]}
21. Nd2 {[%clk 00:06:58]} {[%emt 00:00:21]} Bc6 {[%clk 00:15:28]} {[%emt
00:05:08]} 22. Qg2 {[%clk 00:07:27]} {[%emt 00:00:02]} Nf7 {[%clk 00:10:49]}
{[%emt 00:05:08]} 23. h4 {[%clk 00:05:42]} {[%emt 00:02:16]} Rad8 {[%clk
00:10:04]} {[%emt 00:01:14]} 24. Bxc6 {[%clk 00:05:54]} {[%emt 00:00:18]} bxc6
{[%clk 00:09:36]} {[%emt 00:00:58]} 25. h5 {[%clk 00:06:07]} {[%emt 00:00:17]}
c5 {[%clk 00:09:28]} {[%emt 00:00:38]} 26. hxg6 {[%clk 00:06:12]} {[%emt
00:00:25]} hxg6 {[%clk 00:09:46]} {[%emt 00:00:12]} 27. Bc1 {[%clk 00:06:06]}
{[%emt 00:00:37]} Qf6 {[%clk 00:08:00]} {[%emt 00:02:13]} 28. g4 {[%clk
00:06:09]} {[%emt 00:00:30]} Qg5 {[%clk 00:04:43]} {[%emt 00:03:46]} 29. gxf5
{[%clk 00:03:39]} {[%emt 00:03:00]} gxf5 {[%clk 00:04:57]} {[%emt 00:00:16]} 30.
Nf1 {[%clk 00:03:52]} {[%emt 00:00:18]} Qxg2+ {[%clk 00:04:58]} {[%emt
00:00:29]} 31. Kxg2 {[%clk 00:04:18]} {[%emt 00:00:03]} Bd6 {[%clk 00:02:43]}
{[%emt 00:02:46]} 32. Ng3 {[%clk 00:03:27]} {[%emt 00:01:21]} Kf6 {[%clk
00:03:08]} {[%emt 00:00:05]} 33. Bd2 {[%clk 00:03:45]} {[%emt 00:00:12]} Rg8
{[%clk 00:02:51]} {[%emt 00:00:46]} 34. Kf3 {[%clk 00:04:06]} {[%emt 00:00:09]}
Rde8 {[%clk 00:01:20]} {[%emt 00:02:02]} 35. Nh5+ {[%clk 00:03:09]} {[%emt
00:01:27]} Ke7 {[%clk 00:00:48]} {[%emt 00:01:01]} 36. Rg1 {[%clk 00:03:34]}
{[%emt 00:00:06]} Rxg1 {[%clk 00:00:52]} {[%emt 00:00:26]} 37. Rxg1 {[%clk
00:04:03]} Rh8 {[%clk 00:00:38]} {[%emt 00:00:44]} 38. Ng3 {[%clk 00:03:38]}
{[%emt 00:00:55]} Ke6 {[%clk 00:00:46]} {[%emt 00:00:22]} 39. Bxa5 {[%clk
00:04:06]} {[%emt 00:00:02]} Ng5+ {[%clk 00:00:42]} {[%emt 00:00:34]} 40. Ke2
{[%clk 00:04:04]} {[%emt 00:00:31]} e4 {[%clk 00:00:44]} {[%emt 00:00:29]} 41.
Nxe4 {[%clk 00:18:36]} {[%emt 00:15:57]} Nxe4 {[%clk 00:26:36]} {[%emt
00:04:38]} 42. dxe4 {[%clk 00:18:56]} {[%emt 00:00:11]} fxe4 {[%clk 00:26:25]}
{[%emt 00:00:40]} 43. Rg6+ {[%clk 00:19:10]} {[%emt 00:00:16]} Kd7 {[%clk
00:23:06]} {[%emt 00:03:49]} 44. Rg7+ {[%clk 00:19:34]} {[%emt 00:00:05]} Ke6
{[%clk 00:21:41]} {[%emt 00:01:56]} 45. Rg6+ {[%clk 00:19:51]} {[%emt
00:00:13]} Kd7 {[%clk 00:22:02]} {[%emt 00:00:09]} 46. Rg7+ {[%clk 00:20:03]}
{[%emt 00:00:18]} Ke6 {[%clk 00:22:27]} {[%emt 00:00:05]} 1/2-1/2

[Event "Schack-SM 2022: Sverigemastarklassen"]
[Site "Fyrishov, Idrottsgatan 2, Uppsala, Sweden"]
[Date "2022.07.05"]
[Round "4.4"]
[White "Seo, Jung Min"]
[Black "Johansson, Linus"]
[Result "1/2-1/2"]
[TimeControl "90 minutes for 40 moves + 30 minutes for the rest of the game + 30 seconds per move from move one."]
[WhiteTitle "IM"]
[BlackTitle "IM"]
[WhiteFideId "1734687"]
[BlackFideId "1711113"]
[WhiteElo "2492"]
[BlackElo "2468"]

1. d4 {[%clk 01:30:52]} {[%emt 00:00:08]} Nf6 {[%clk 01:30:53]} {[%emt
00:00:06]} 2. c4 {[%clk 01:31:21]} {[%emt 00:00:02]} e6 {[%clk 01:31:16]}
{[%emt 00:00:07]} 3. Nf3 {[%clk 01:31:49]} {[%emt 00:00:01]} d5 {[%clk
01:31:39]} {[%emt 00:00:08]} 4. g3 {[%clk 01:32:17]} {[%emt 00:00:03]} Bb4+
{[%clk 01:32:03]} {[%emt 00:00:06]} 5. Bd2 {[%clk 01:32:42]} {[%emt 00:00:05]}
Bd6 {[%clk 01:32:28]} {[%emt 00:00:05]} 6. Bg2 {[%clk 01:32:36]} {[%emt
00:00:36]} O-O {[%clk 01:32:50]} {[%emt 00:00:07]} 7. O-O {[%clk 01:32:30]}
{[%emt 00:00:37]} Nbd7 {[%clk 01:33:05]} {[%emt 00:00:15]} 8. Qc2 {[%clk
01:31:29]} {[%emt 00:01:29]} c6 {[%clk 01:32:21]} {[%emt 00:01:15]} 9. Rd1
{[%clk 01:29:08]} {[%emt 00:02:50]} Ne4 {[%clk 01:28:40]} {[%emt 00:04:12]} 10.
Nc3 {[%clk 01:28:16]} {[%emt 00:01:23]} f5 {[%clk 01:28:59]} {[%emt 00:00:10]}
11. Rac1 {[%clk 01:27:05]} {[%emt 00:01:41]} Qe8 {[%clk 01:23:35]} {[%emt
00:05:54]} 12. Ng5 {[%clk 01:22:33]} {[%emt 00:05:02]} Nxd2 {[%clk 01:11:54]}
{[%emt 00:12:12]} 13. Qxd2 {[%clk 01:22:59]} {[%emt 00:00:04]} h6 {[%clk
01:12:01]} {[%emt 00:00:23]} 14. Nf3 {[%clk 01:21:35]} {[%emt 00:01:53]} Kh8
{[%clk 01:09:15]} {[%emt 00:03:16]} 15. c5 {[%clk 01:18:25]} {[%emt 00:03:41]}
Bc7 {[%clk 01:08:54]} {[%emt 00:00:51]} 16. b4 {[%clk 01:18:35]} {[%emt
00:00:20]} a6 {[%clk 01:07:52]} {[%emt 00:01:32]} 17. e3 {[%clk 01:14:18]}
{[%emt 00:04:46]} g5 {[%clk 01:00:00]} {[%emt 00:08:22]} 18. a4 {[%clk
01:11:13]} {[%emt 00:03:36]} Qe7 {[%clk 00:54:20]} {[%emt 00:06:09]} 19. b5
{[%clk 01:07:42]} {[%emt 00:04:01]} axb5 {[%clk 00:54:17]} {[%emt 00:00:33]} 20.
axb5 {[%clk 01:07:54]} {[%emt 00:00:18]} e5 {[%clk 00:54:32]} {[%emt 00:00:14]}
21. bxc6 {[%clk 01:05:03]} {[%emt 00:03:22]} bxc6 {[%clk 00:54:54]} {[%emt
00:00:08]} 22. Nxe5 {[%clk 01:04:29]} {[%emt 00:01:04]} Nxe5 {[%clk 00:52:46]}
{[%emt 00:02:38]} 23. dxe5 {[%clk 01:04:38]} {[%emt 00:00:21]} Bxe5 {[%clk
00:53:09]} {[%emt 00:00:06]} 24. Ne2 {[%clk 01:03:12]} {[%emt 00:01:57]} Qg7
{[%clk 00:39:37]} {[%emt 00:14:02]} 25. Nd4 {[%clk 00:53:32]} {[%emt 00:10:11]}
Bd7 {[%clk 00:32:14]} {[%emt 00:07:52]} 26. Ra1 {[%clk 00:50:05]} {[%emt
00:03:54]} f4 {[%clk 00:29:42]} {[%emt 00:03:05]} 27. Qb4 {[%clk 00:45:42]}
{[%emt 00:04:53]} fxe3 {[%clk 00:28:18]} {[%emt 00:01:54]} 28. fxe3 {[%clk
00:46:09]} {[%emt 00:00:03]} Rxa1 {[%clk 00:20:24]} {[%emt 00:08:24]} 29. Rxa1
{[%clk 00:46:33]} {[%emt 00:00:06]} Bxd4 {[%clk 00:14:37]} {[%emt 00:06:18]} 30.
exd4 {[%clk 00:43:15]} {[%emt 00:03:48]} Bf5 {[%clk 00:14:57]} {[%emt
00:00:09]} 31. Rf1 {[%clk 00:41:12]} {[%emt 00:02:33]} Bg6 {[%clk 00:14:38]}
{[%emt 00:00:49]} 32. Rxf8+ {[%clk 00:40:56]} {[%emt 00:00:46]} Qxf8 {[%clk
00:15:03]} {[%emt 00:00:05]} 33. Qe1 {[%clk 00:41:14]} {[%emt 00:00:10]} Qf6
{[%clk 00:15:13]} {[%emt 00:00:22]} 34. Qe3 {[%clk 00:41:33]} {[%emt 00:00:10]}
Kg7 {[%clk 00:15:24]} {[%emt 00:00:20]} 35. h3 {[%clk 00:40:58]} {[%emt
00:01:05]} Kf7 {[%clk 00:15:23]} {[%emt 00:00:30]} 36. Bf3 {[%clk 00:41:14]}
{[%emt 00:00:13]} Qf5 {[%clk 00:14:50]} {[%emt 00:01:05]} 37. Kg2 {[%clk
00:41:21]} {[%emt 00:00:23]} Qc2+ {[%clk 00:15:05]} {[%emt 00:00:16]} 38. Qf2
{[%clk 00:41:42]} {[%emt 00:00:06]} Ke7 {[%clk 00:14:17]} {[%emt 00:01:20]} 39.
Qxc2 {[%clk 00:42:06]} {[%emt 00:00:06]} Bxc2 {[%clk 00:14:43]} {[%emt
00:00:04]} 40. Kf2 {[%clk 00:42:27]} {[%emt 00:00:09]} Bf5 {[%clk 00:14:11]}
{[%emt 00:01:02]} 41. h4 {[%clk 00:42:45]} {[%emt 00:00:12]} Bd7 {[%clk
00:14:29]} {[%emt 00:00:12]} 42. hxg5 {[%clk 00:43:10]} {[%emt 00:00:05]} hxg5
{[%clk 00:14:53]} {[%emt 00:00:05]} 43. Ke3 {[%clk 00:43:33]} {[%emt 00:00:08]}
Bf5 {[%clk 00:15:01]} {[%emt 00:00:22]} 44. Bd1 {[%clk 00:43:53]} {[%emt
00:00:09]} Bd7 {[%clk 00:14:40]} {[%emt 00:00:51]} 45. Bf3 {[%clk 00:44:19]}
{[%emt 00:00:05]} Bf5 {[%clk 00:15:04]} {[%emt 00:00:05]} 46. Bd1 {[%clk
00:44:48]} {[%emt 00:00:02]} Bd7 {[%clk 00:15:29]} {[%emt 00:00:06]} 47. Bf3
{[%clk 00:45:15]} {[%emt 00:00:02]} 1/2-1/2